bitfinex/quotes_BTCUSD_20250916
["timestamp","ask_amount","ask_price","bid_price","bid_amount"]
[1758047115203,0.1932622,116780.0,116770.0,1.29593822]
[1758047115380,0.1932622,116780.0,116770.0,0.93716686]
[1758047115592,0.1932622,116780.0,116770.0,1.28191822]
[1758047116331,0.1952222,116780.0,116770.0,0.84320136]
[1758047116553,0.2224522,116780.0,116770.0,1.11064136]
[1758047116781,0.2224522,116780.0,116770.0,1.10859136]
[1758047118003,0.2223498,116780.0,116770.0,1.10859136]
[1758047118634,0.2223498,116780.0,116770.0,1.27986822]
[1758047118781,0.2223498,116780.0,116770.0,1.28191822]
[1758047119000,0.2191898,116780.0,116770.0,1.28191822]
[1758047119221,0.1931598,116780.0,116770.0,1.28191822]
[1758047120271,0.1931598,116780.0,116770.0,1.29593822]
[1758047120524,0.1931598,116780.0,116770.0,1.12466136]
[1758047120814,0.1931598,116780.0,116770.0,1.11064136]
[1758047121035,0.1931598,116780.0,116770.0,1.28191822]
[1758047121284,0.1931598,116780.0,116770.0,1.29593822]
[1758047122157,0.1931598,116780.0,116770.0,1.38372967]
[1758047123926,0.1931598,116780.0,116770.0,1.21116281]
[1758047124147,0.1931598,116780.0,116770.0,1.02366831]
[1758047124337,0.1931598,116780.0,116770.0,1.38243967]
[1758047125615,0.19255894,116780.0,116770.0,1.38243967]
[1758047130753,0.19255894,116780.0,116770.0,1.11499967]
[1758047130979,0.19255894,116780.0,116770.0,1.38243967]
[1758047131968,0.18999001,116780.0,116770.0,1.38243967]
[1758047135302,0.01872781,116780.0,116770.0,1.38372967]
[1758047135518,0.01872781,116780.0,116770.0,1.72372967]
[1758047138251,0.01872781,116780.0,116770.0,2.05280967]
[1758047138852,0.01872781,116780.0,116770.0,1.78536967]
[1758047139058,0.01872781,116780.0,116770.0,2.05276967]
[1758047139588,0.01872781,116780.0,116770.0,1.78536967]
[1758047139874,0.01872781,116780.0,116770.0,2.55276967]
[1758047141550,0.01872781,116780.0,116770.0,2.28536967]
[1758047141746,0.01872781,116780.0,116770.0,2.55276967]
[1758047141973,0.01872781,116780.0,116770.0,2.19399831]
[1758047142180,0.01872781,116780.0,116770.0,2.55276967]
[1758047145786,0.01872781,116780.0,116770.0,2.55272967]
[1758047148478,0.01872781,116780.0,116770.0,2.28536967]
[1758047148886,0.01872781,116780.0,116770.0,2.53741967]
[1758047149318,0.01872781,116780.0,116770.0,2.55143967]
[1758047149497,0.01872781,116780.0,116770.0,2.53741967]
[1758047149951,0.01872781,116780.0,116770.0,2.55272967]
[1758047151934,0.01872781,116780.0,116770.0,2.59732838]
[1758047151935,0.01615888,116780.0,116770.0,2.59732838]
[1758047155792,0.01615888,116780.0,116770.0,2.19266831]
[1758047156038,0.18950108,116780.0,116770.0,1.80133152]
[1758047156260,0.21524108,116780.0,116770.0,2.06869152]
[1758047156409,0.21524108,116780.0,116770.0,2.23996838]
[1758047157455,0.21524108,116780.0,116770.0,2.06869152]
[1758047159267,0.21524108,116780.0,116770.0,2.23996838]
[1758047161367,0.19244108,116780.0,116770.0,1.39796145]
[1758047161581,0.21524108,116780.0,116770.0,1.66528145]
[1758047161807,0.21524108,116780.0,116770.0,2.06865152]
[1758047162839,0.21524108,116780.0,116770.0,2.23992838]
[1758047163473,0.21524108,116780.0,116770.0,1.83655831]
[1758047163709,0.21524108,116780.0,116770.0,2.23992838]
[1758047166128,0.21524108,116780.0,116770.0,2.06865152]
[1758047166372,0.21524108,116780.0,116770.0,1.80133152]
[1758047166585,0.21524108,116780.0,116770.0,2.06865152]
[1758047166895,0.21524108,116780.0,116770.0,1.73957152]
[1758047169242,0.21524108,116780.0,116770.0,1.06888145]
[1758047169475,0.61861115,116780.0,116770.0,0.98238]
[1758047169954,0.61861115,116780.0,116770.0,1.16742]
[1758047170411,0.64434311,116780.0,116770.0,0.5001]
[1758047170635,0.25701322,116780.0,116770.0,0.76742]
[1758047170871,0.66038329,116780.0,116770.0,0.76742]
[1758047171590,0.64434311,116780.0,116770.0,0.76742]
[1758047172022,0.64187418,116780.0,116770.0,0.76742]
[1758047172490,0.64187418,116780.0,116770.0,0.26742]
[1758047172696,0.65074193,116780.0,116770.0,0.26742]
[1758047173355,0.65074193,116780.0,116770.0,0.0001]
[1758047173579,0.65074193,116780.0,116770.0,0.26862]
[1758047174231,0.65074193,116780.0,116770.0,0.0001]
[1758047175108,0.70574578,116780.0,116770.0,0.0001]
[1758047175380,0.65074193,116780.0,116770.0,0.0001]
[1758047176794,0.91926193,116780.0,116770.0,0.0001]
[1758047180587,0.65074193,116780.0,116770.0,0.0001]
[1758047180771,0.91922193,116780.0,116770.0,0.0001]
[1758047181737,0.23850411,116780.0,116770.0,0.0001]
[1758047181958,0.64187418,116780.0,116770.0,0.0001]
[1758047186772,0.21068411,116780.0,116770.0,0.40551007]
[1758047186982,0.01368995,116780.0,116770.0,0.67859838]
[1758047187402,0.01368995,116780.0,116770.0,1.07859838]
[1758047188814,0.01358995,116780.0,116770.0,1.07859838]
[1758047189220,0.01358995,116780.0,116770.0,1.41859838]
[1758047189582,0.01358995,116780.0,116770.0,1.67172838]
[1758047189790,0.01358995,116780.0,116770.0,1.68703838]
[1758047189993,0.18485215,116780.0,116770.0,1.26835831]
[1758047190202,0.01358995,116780.0,116770.0,1.68703838]
[1758047192755,0.01358995,116780.0,116770.0,2.41952845]
[1758047192968,0.01358995,116780.0,116770.0,2.44968035]
[1758047193180,0.01358995,116780.0,116770.0,2.47540368]
[1758047194062,0.01358995,116780.0,116770.0,2.47640368]
[1758047194250,0.01358995,116780.0,116770.0,2.47636368]
[1758047194604,0.01358995,116780.0,116770.0,2.47536368]
[1758047194786,0.01358995,116780.0,116770.0,2.47732368]
[1758047195095,0.01358995,116780.0,116770.0,2.20996368]
[1758047195332,0.01358995,116780.0,116770.0,2.47832368]
[1758047196705,0.01358995,116780.0,116770.0,1.67158354]
[1758047196893,0.01358995,116780.0,116770.0,2.47832368]
[1758047197048,0.01358995,116780.0,116770.0,2.20996368]
[1758047197275,0.01358995,116780.0,116770.0,2.47828368]
[1758047198249,0.01358995,116780.0,116770.0,1.80659361]
[1758047198458,0.01358995,116780.0,116770.0,2.07483361]
[1758047198613,0.01358995,116780.0,116770.0,1.77644171]
[1758047198792,0.01358995,116780.0,116770.0,2.04468171]
[1758047199395,0.01358995,116780.0,116770.0,1.77644171]
[1758047199624,0.01358995,116780.0,116770.0,2.04464171]
[1758047201647,0.01358995,116780.0,116770.0,2.54464171]
[1758047201838,0.01358995,116780.0,116770.0,2.27644171]
[1758047202057,0.01358995,116780.0,116770.0,2.54460171]
[1758047202275,0.01358995,116780.0,116770.0,2.94797178]
[1758047203417,0.01358995,116780.0,116770.0,2.27644171]
[1758047203848,0.01358995,116780.0,116770.0,2.54452171]
[1758047205467,0.01358995,116780.0,116770.0,1.85776164]
[1758047205698,0.19020215,116780.0,116770.0,1.66109152]
[1758047205913,0.21399215,116780.0,116770.0,0.85776145]
[1758047206119,0.61736222,116780.0,116770.0,0.85776145]
[1758047206326,0.21399215,116780.0,116770.0,0.85776145]
[1758047207175,0.21399215,116780.0,116770.0,1.25776145]
[1758047207818,0.61736222,116780.0,116770.0,0.9031]
[1758047208015,0.61736222,116780.0,116770.0,0.77126]
[1758047208253,0.21399215,116780.0,116770.0,0.77126]
[1758047208897,0.61736222,116780.0,116770.0,0.5031]
[1758047209153,0.61736222,116780.0,116770.0,0.77122]
[1758047209783,0.64309482,116780.0,116770.0,0.77122]
[1758047210204,0.64309482,116780.0,116770.0,0.5031]
[1758047210430,0.65919119,116780.0,116770.0,0.5031]
[1758047210638,0.65919119,116780.0,116770.0,0.5011]
[1758047211413,1.01393264,116780.0,116770.0,0.5011]
[1758047211604,1.01393264,116780.0,116770.0,0.5001]
[1758047211843,0.97046307,116780.0,116770.0,0.5001]
[1758047212183,0.20142876,116770.0,116760.0,0.0001]
[1758047212405,1.36172758,116770.0,116760.0,0.0001]
[1758047212624,1.62996758,116770.0,116760.0,0.0001]
[1758047212813,1.39096758,116770.0,116760.0,1e-08]
[1758047213273,1.65920758,116770.0,116760.0,1e-08]
[1758047213507,0.51129153,116760.0,116750.0,0.484308]
[1758047213735,1.33159035,116760.0,116750.0,0.484308]
[1758047213952,1.62825035,116760.0,116750.0,0.0001]
[1758047214189,1.68414295,116760.0,116750.0,1e-08]
[1758047214410,1.8529244,116760.0,116750.0,1e-08]
[1758047214861,0.5414581,116750.0,116740.0,0.0001]
[1758047215079,1.00285642,116750.0,116740.0,0.0001]
[1758047215311,1.04001723,116750.0,116740.0,0.0001]
[1758047215559,0.90037328,116740.0,116730.0,0.0001]
[1758047215749,1.2712311,116740.0,116730.0,0.0001]
[1758047215969,1.2995511,116740.0,116730.0,0.0001]
[1758047216187,1.29952025,116740.0,116730.0,0.0001]
[1758047216404,1.32536689,116740.0,116730.0,0.0001]
[1758047216562,1.41186834,116740.0,116730.0,0.0001]
[1758047217170,1.41486834,116740.0,116730.0,0.0001]
[1758047218208,0.17133556,116730.0,116720.0,0.0001]
[1758047218406,0.63270303,116730.0,116720.0,0.0001]
[1758047218610,0.66112303,116730.0,116720.0,0.0001]
[1758047218843,0.74762448,116730.0,116720.0,0.0001]
[1758047219443,0.77337113,116730.0,116720.0,0.0011]
[1758047219881,0.77337113,116730.0,116720.0,0.003]
[1758047220047,1.04165113,116730.0,116720.0,0.003]
[1758047220845,0.68275063,116730.0,116720.0,0.003]
[1758047221045,0.95514968,116730.0,116720.0,0.003]
[1758047221788,0.95534968,116730.0,116720.0,0.003]
[1758047222038,0.95530968,116730.0,116720.0,0.003]
[1758047222582,0.24146773,116730.0,116720.0,0.003]
[1758047222781,0.48658773,116730.0,116720.0,0.003]
[1758047222995,0.50990773,116730.0,116720.0,0.003]
[1758047223460,0.21514773,116730.0,116720.0,0.00496]
[1758047223907,0.21514773,116730.0,116720.0,0.003]
[1758047224130,0.24141773,116730.0,116720.0,0.003]
[1758047224616,0.24141773,116730.0,116720.0,0.0031]
[1758047225735,0.32791918,116730.0,116720.0,0.0031]
[1758047227740,0.24141773,116730.0,116720.0,0.0031]
[1758047230445,0.50985773,116730.0,116720.0,0.0031]
[1758047231797,0.86871505,116730.0,116720.0,0.0031]
[1758047232245,0.9552165,116730.0,116720.0,0.0031]
[1758047233085,0.9552165,116730.0,116720.0,0.003]
[1758047233289,1.04171795,116730.0,116720.0,0.003]
[1758047234503,0.17135023,116720.0,116710.0,0.0001]
[1758047234716,0.54617307,116720.0,116710.0,0.0001]
[1758047234920,0.54832328,116720.0,116710.0,0.0001]
[1758047235127,0.66109473,116720.0,116710.0,0.0001]
[1758047235547,0.66119473,116720.0,116710.0,0.0001]
[1758047235753,0.66124172,116720.0,116710.0,0.0001]
[1758047235930,0.66124172,116720.0,116710.0,0.0011]
[1758047238671,0.84314027,116720.0,116710.0,0.0011]
[1758047238898,0.57474027,116720.0,116710.0,0.0011]
[1758047239112,0.84310027,116720.0,116710.0,0.0011]
[1758047239315,0.48419977,116720.0,116710.0,0.0011]
[1758047240470,0.84310027,116720.0,116710.0,0.0011]
[1758047240681,0.92960172,116720.0,116710.0,0.0011]
[1758047241329,0.57070122,116720.0,116710.0,0.0011]
[1758047242821,0.92960172,116720.0,116710.0,0.0011]
[1758047243049,0.95534946,116720.0,116710.0,0.0011]
[1758047243725,1.07200281,116720.0,116710.0,0.0011]
[1758047243978,1.41200281,116720.0,116710.0,0.0011]
[1758047244185,1.41200281,116720.0,116700.0,0.0001]
[1758047244429,0.61676687,116710.0,116700.0,0.0001]
[1758047244646,0.1713796,116700.0,116690.0,0.0001]
[1758047244832,0.18733215,116700.0,116690.0,0.3590005]
[1758047245101,0.18733215,116700.0,116690.0,0.3610605]
[1758047245294,0.18955215,116700.0,116690.0,0.3610605]
[1758047245550,0.21582215,116700.0,116690.0,0.3610605]
[1758047245772,0.21582215,116700.0,116690.0,0.3590005]
[1758047246726,0.21582215,116700.0,116690.0,0.3620005]
[1758047247444,0.21582215,116700.0,116690.0,0.3640005]
[1758047248211,0.21582215,116700.0,116690.0,0.0051]
[1758047248443,0.30214276,116700.0,116690.0,0.0051]
[1758047248647,0.30214276,116700.0,116690.0,0.3640005]
[1758047251689,0.30214276,116700.0,116690.0,0.0051]
[1758047252962,0.74754471,116700.0,116690.0,0.0051]
[1758047253198,0.77329732,116700.0,116690.0,0.0051]
[1758047253438,0.80344922,116700.0,116690.0,0.0021]
[1758047253647,0.17139429,116690.0,116680.0,0.0001]
[1758047253858,0.27384829,116690.0,116680.0,0.0001]
[1758047254043,0.27593829,116690.0,116680.0,0.0001]
[1758047254249,0.30197829,116690.0,116680.0,0.0001]
[1758047254455,0.32773222,116690.0,116680.0,0.0001]
[1758047254690,0.77323417,116690.0,116680.0,0.0001]
[1758047254894,1.04167417,116690.0,116680.0,0.0021]
[1758047255113,1.41182607,116690.0,116680.0,0.0021]
[1758047255335,0.87030948,116680.0,116670.0,0.0005]
[1758047255557,0.70036443,116680.0,116670.0,0.0005]
[1758047255794,1.11764683,116680.0,116670.0,0.0005]
[1758047256043,1.41204641,116680.0,116670.0,0.0005]
[1758047256278,1.77094691,116680.0,116670.0,0.0005]
[1758047256501,1.41204641,116680.0,116670.0,0.00097075]
[1758047256729,1.77094691,116680.0,116670.0,1e-08]
[1758047257192,1.41204641,116680.0,116670.0,1e-08]
[1758047257674,0.51142367,116670.0,116660.0,0.0004]
[1758047257894,0.51142367,116670.0,116660.0,1e-08]
[1758047257895,0.78269912,116670.0,116660.0,1e-08]
[1758047258142,0.81082912,116670.0,116660.0,1e-08]
[1758047258396,1.24998152,116670.0,116660.0,1e-08]
[1758047258649,0.53033886,116660.0,116650.0,1e-08]
[1758047258905,0.51145306,116650.0,116640.0,1e-08]
[1758047259131,1.24362759,116650.0,116640.0,0.00047053]
[1758047259357,1.26976759,116650.0,116640.0,0.00047053]
[1758047260031,1.26976759,116650.0,116640.0,0.00047052]
[1758047260267,1.35091949,116650.0,116640.0,1e-08]
[1758047260508,1.16874094,116650.0,116640.0,1e-08]
[1758047260723,1.43642094,116650.0,116640.0,1e-08]
[1758047260917,1.43742094,116650.0,116640.0,1e-08]
[1758047261773,0.81084044,116650.0,116640.0,1e-08]
[1758047261985,0.20163436,116630.0,116620.0,0.0004]
[1758047262212,0.61016991,116630.0,116620.0,0.00052105]
[1758047262457,0.63829991,116630.0,116620.0,0.00052105]
[1758047262700,0.64899991,116630.0,116620.0,0.00052105]
[1758047263124,1.00800041,116630.0,116620.0,0.00052105]
[1758047263585,1.00900041,116630.0,116620.0,0.00452105]
[1758047263912,0.29107649,116630.0,116620.0,0.00452105]
[1758047264138,0.55450649,116630.0,116620.0,0.00658105]
[1758047264346,0.58263649,116630.0,116620.0,0.00452105]
[1758047269726,0.55502649,116630.0,116620.0,0.00658105]
[1758047270077,0.55711649,116630.0,116620.0,0.00658105]
[1758047270311,0.66965794,116630.0,116620.0,0.00452105]
[1758047271332,0.65895794,116630.0,116620.0,0.00452105]
[1758047271777,1.06365051,116630.0,116620.0,0.00452105]
[1758047272692,1.08941898,116630.0,116620.0,0.00452105]
[1758047273131,0.68472641,116630.0,116620.0,0.00452105]
[1758047273341,1.08941898,116630.0,116620.0,0.00452105]
[1758047275713,1.45957088,116630.0,116620.0,0.00452105]
[1758047276752,1.45857088,116630.0,116620.0,0.00052105]
[1758047276957,1.45957088,116630.0,116620.0,0.00252105]
[1758047277395,1.45857088,116630.0,116620.0,0.00052105]
[1758047277602,1.45957088,116630.0,116620.0,0.00252105]
[1758047280766,0.78563831,116630.0,116620.0,0.00252105]
[1758047280985,1.45929088,116630.0,116620.0,0.00252105]
[1758047282346,1.19033088,116630.0,116620.0,0.00252105]
[1758047282570,0.78317831,116630.0,116620.0,0.00252105]
[1758047282821,1.43320088,116630.0,116620.0,0.00449105]
[1758047283034,1.45990088,116630.0,116620.0,0.00252105]
[1758047283994,1.05520831,116630.0,116620.0,0.00252105]
[1758047284226,1.05008831,116630.0,116620.0,0.00458105]
[1758047284450,1.43120088,116630.0,116620.0,0.00458105]
[1758047284587,1.43331088,116630.0,116620.0,0.00458105]
[1758047285003,0.99651641,116630.0,116620.0,0.00458105]
[1758047285203,0.99651641,116630.0,116620.0,0.01860105]
[1758047285847,0.99651641,116630.0,116620.0,0.00458105]
[1758047286264,0.17149717,116620.0,116610.0,0.40638257]
[1758047286466,0.18749975,116620.0,116610.0,0.4065237]
[1758047286674,0.18759975,116620.0,116610.0,0.4065237]
[1758047287050,0.18759975,116620.0,116610.0,0.4205437]
[1758047287249,0.2741012,116620.0,116610.0,0.4205437]
[1758047287456,0.2741012,116620.0,116610.0,0.4292659]
[1758047287696,0.2751012,116620.0,116610.0,0.4235437]
[1758047287882,0.5442612,116620.0,116610.0,0.4235437]
[1758047288554,0.5442612,116620.0,116610.0,0.4245437]
[1758047288959,0.5442612,116620.0,116610.0,0.4232537]
[1758047290223,0.18859975,116620.0,116610.0,0.4232537]
[1758047290448,0.45763975,116620.0,116610.0,0.4232537]
[1758047290893,0.18859975,116620.0,116610.0,0.4232537]
[1758047291798,0.62274232,116620.0,116610.0,0.00454113]
[1758047292226,0.70924377,116620.0,116610.0,0.00454113]
[1758047292445,0.79574522,116620.0,116610.0,0.00454113]
[1758047294018,0.82151506,116620.0,116610.0,0.00454113]
[1758047296274,0.17151187,116610.0,116600.0,0.0107]
[1758047296493,0.86144702,116610.0,116600.0,0.0108208]
[1758047296737,0.86463702,116610.0,116600.0,0.0108208]
[1758047296974,0.97739847,116610.0,116600.0,0.0108208]
[1758047297403,0.97749847,116610.0,116600.0,0.0108208]
[1758047297830,0.97849847,116610.0,116600.0,0.0168208]
[1758047298537,0.5738059,116610.0,116600.0,0.0168208]
[1758047298752,0.97849847,116610.0,116600.0,0.0168208]
[1758047299869,0.95434847,116610.0,116600.0,0.0168208]
[1758047300084,1.46969249,116610.0,116600.0,0.0167208]
[1758047300304,1.94801757,116610.0,116600.0,1e-08]
[1758047300520,1.67877757,116610.0,116600.0,1e-08]
[1758047300772,0.94637105,116600.0,116590.0,0.0004]
[1758047300988,1.40457653,116600.0,116590.0,0.00044705]
[1758047301207,1.43402653,116600.0,116590.0,0.00044705]
[1758047301851,1.43398653,116600.0,116590.0,0.00044705]
[1758047302088,1.16492653,116600.0,116590.0,0.00044705]
[1758047302309,1.43408653,116600.0,116590.0,0.00044705]
[1758047302946,1.43608653,116600.0,116590.0,0.00144705]
[1758047303203,1.14277653,116600.0,116590.0,0.00144705]
[1758047303427,1.45068653,116600.0,116590.0,0.00144705]
[1758047303653,1.18144653,116600.0,116590.0,0.00144705]
[1758047304075,1.04599396,116600.0,116590.0,0.00144705]
[1758047304292,1.18144653,116600.0,116590.0,0.00144705]
[1758047304550,1.45068653,116600.0,116590.0,0.00144705]
[1758047305055,1.45076653,116600.0,116590.0,0.00144705]
[1758047305914,1.45080653,116600.0,116590.0,0.00144705]
[1758047306129,1.42346653,116600.0,116590.0,0.00144705]
[1758047306337,1.18144653,116600.0,116590.0,0.00144705]
[1758047306547,1.45080653,116600.0,116590.0,0.00144705]
[1758047306761,0.98862206,116600.0,116590.0,0.00144705]
[1758047306969,1.39331463,116600.0,116590.0,0.00144705]
[1758047307203,1.42065463,116600.0,116590.0,0.00144705]
[1758047308183,1.04611396,116600.0,116590.0,0.00144705]
[1758047308432,1.45080653,116600.0,116590.0,0.00144705]
[1758047308672,1.04607396,116600.0,116590.0,0.00144705]
[1758047308932,1.18144653,116600.0,116590.0,0.00144705]
[1758047309188,1.45076653,116600.0,116590.0,0.00144705]
[1758047310225,1.18144653,116600.0,116590.0,0.00144705]
[1758047310490,1.45076653,116600.0,116590.0,0.00144705]
[1758047313356,1.45072653,116600.0,116590.0,0.00144705]
[1758047313564,1.39638463,116600.0,116590.0,0.00144705]
[1758047314197,1.15178463,116600.0,116590.0,0.00144705]
[1758047314406,1.42102463,116600.0,116590.0,0.00144705]
[1758047315029,1.01633206,116600.0,116590.0,0.00144705]
[1758047315242,1.42102463,116600.0,116590.0,0.00144705]
[1758047315892,1.45117653,116600.0,116590.0,0.00144705]
[1758047317202,1.04648396,116600.0,116590.0,0.00144705]
[1758047317416,1.45117653,116600.0,116590.0,0.00144705]
[1758047318732,1.04648396,116600.0,116590.0,0.00144705]
[1758047318963,1.45133653,116600.0,116590.0,0.00144705]
[1758047319385,1.18193653,116600.0,116590.0,0.00144705]
[1758047319590,1.45125653,116600.0,116590.0,0.00144705]
[1758047319823,1.47125653,116600.0,116590.0,0.00144705]
[1758047321082,1.27193653,116600.0,116590.0,0.00144705]
[1758047321555,1.54133653,116600.0,116590.0,0.00144705]
[1758047322481,1.52533395,116600.0,116590.0,0.00144705]
[1758047322671,1.24182466,116600.0,116590.0,0.00144705]
[1758047322943,1.21718466,116600.0,116590.0,0.00144705]
[1758047323170,0.80719209,116600.0,116590.0,0.40613962]
[1758047323389,0.56362919,116600.0,116590.0,0.42015962]
[1758047323600,0.54914919,116600.0,116590.0,0.42015962]
[1758047325193,0.54914919,116600.0,116590.0,0.01546705]
[1758047325425,0.63565064,116600.0,116590.0,0.42015962]
[1758047327949,0.63565064,116600.0,116590.0,0.01546705]
[1758047328183,1.04034321,116600.0,116590.0,0.01546705]
[1758047328413,0.63565064,116600.0,116590.0,0.00144705]
[1758047328635,0.63760064,116600.0,116590.0,0.00144705]
[1758047329144,0.63762074,116600.0,116590.0,0.00144705]
[1758047329605,0.63551074,116600.0,116590.0,0.40613962]
[1758047330097,0.63551074,116600.0,116590.0,0.42015962]
[1758047330634,0.63543074,116600.0,116590.0,0.42015962]
[1758047330848,0.36619074,116600.0,116590.0,0.42015962]
[1758047331067,0.63543074,116600.0,116590.0,0.42015962]
[1758047331500,0.63543074,116600.0,116590.0,0.01546705]
[1758047331728,0.63543074,116600.0,116590.0,0.42015962]
[1758047332858,0.63543074,116600.0,116590.0,0.40613962]
[1758047333079,0.63543173,116600.0,116590.0,0.01546705]
[1758047333284,0.63543173,116600.0,116590.0,0.42015962]
[1758047333980,0.63543173,116600.0,116590.0,0.01546705]
[1758047335201,0.61936803,116600.0,116590.0,0.01546705]
[1758047336057,0.35012803,116600.0,116590.0,0.01546705]
[1758047336279,0.61924803,116600.0,116590.0,0.01546705]
[1758047336545,0.61936803,116600.0,116590.0,0.01546705]
[1758047336770,0.61936803,116600.0,116590.0,0.37530767]
[1758047337006,0.61936803,116600.0,116590.0,0.01546705]
[1758047338895,0.61936803,116600.0,116590.0,0.00144705]
[1758047339847,0.61932803,116600.0,116590.0,0.00144705]
[1758047341204,0.62133803,116600.0,116590.0,0.00144705]
[1758047341675,0.61932803,116600.0,116590.0,0.01546705]
[1758047341900,0.35012803,116600.0,116590.0,0.01546705]
[1758047342112,0.61924803,116600.0,116590.0,0.01546705]
[1758047342909,0.63530611,116600.0,116590.0,0.01546705]
[1758047343136,0.63731611,116600.0,116590.0,0.00144705]
[1758047343331,0.64052611,116600.0,116590.0,0.00144705]
[1758047343542,0.66495611,116600.0,116590.0,0.00144705]
[1758047343751,0.66495712,116600.0,116590.0,0.00144705]
[1758047345900,0.66174712,116600.0,116590.0,0.00144705]
[1758047346312,0.63731712,116600.0,116590.0,0.00144705]
[1758047347686,0.63732114,116600.0,116590.0,0.00144705]
[1758047348576,0.63531114,116600.0,116590.0,0.00144705]
[1758047348727,0.63531114,116600.0,116590.0,0.01546705]
[1758047348946,0.63531114,116600.0,116590.0,0.00144705]
[1758047350501,0.63539114,116600.0,116590.0,0.00144705]
[1758047350946,0.36619114,116600.0,116590.0,0.00144705]
[1758047351163,0.63539114,116600.0,116590.0,0.01546705]
[1758047351382,0.63753114,116600.0,116590.0,0.00144705]
[1758047351748,0.63539114,116600.0,116590.0,0.00144705]
[1758047352882,0.63539114,116600.0,116590.0,0.01546705]
[1758047354322,0.63753114,116600.0,116590.0,0.00144705]
[1758047354533,0.63539114,116600.0,116590.0,0.00144705]
[1758047354900,0.63539114,116600.0,116590.0,0.01546705]
[1758047357142,0.54880969,116600.0,116590.0,0.36128767]
[1758047357349,0.54880969,116600.0,116590.0,0.37530767]
[1758047358241,0.27968969,116600.0,116590.0,0.37530767]
[1758047358420,0.27968969,116600.0,116590.0,0.53282896]
[1758047358587,0.26362658,116600.0,116590.0,0.81600896]
[1758047359857,0.29164948,116600.0,116590.0,0.81600896]
[1758047360052,0.29164948,116600.0,116590.0,0.81610896]
[1758047360380,0.29164948,116600.0,116590.0,0.37540767]
[1758047360601,0.29164948,116600.0,116590.0,0.64456767]
[1758047360821,0.29701948,116600.0,116590.0,0.27066705]
[1758047361047,0.32078948,116600.0,116590.0,0.27066705]
[1758047362214,0.29378948,116600.0,116590.0,0.27070705]
[1758047362446,0.29164948,116600.0,116590.0,0.27070705]
[1758047363326,0.29164948,116600.0,116590.0,0.28472705]
[1758047363628,0.29164948,116600.0,116590.0,0.64456767]
[1758047363864,0.26362658,116600.0,116590.0,0.64456767]
[1758047366211,0.26362658,116600.0,116590.0,0.64452767]
[1758047366338,0.26899658,116600.0,116590.0,0.00154705]
[1758047366573,0.29276658,116600.0,116590.0,0.00154705]
[1758047369086,0.26362658,116600.0,116590.0,0.00154705]
[1758047369245,0.35012803,116600.0,116590.0,0.01556705]
[1758047370309,0.26362658,116600.0,116590.0,0.36138767]
[1758047370514,0.26362658,116600.0,116590.0,0.37540767]
[1758047371754,0.26362658,116600.0,116590.0,0.54694896]
[1758047372196,0.0921,116600.0,116590.0,0.71585041]
[1758047372411,0.0221,116600.0,116590.0,0.71585041]
[1758047372628,0.0221,116600.0,116590.0,1.11585041]
[1758047373266,0.022,116600.0,116590.0,1.11585041]
[1758047377698,0.022,116600.0,116590.0,1.47569103]
[1758047378117,0.022,116600.0,116590.0,2.07437103]
[1758047378284,0.022,116600.0,116590.0,2.07337103]
[1758047378489,0.02,116600.0,116590.0,2.09537103]
[1758047378874,0.02,116600.0,116590.0,2.09637103]
[1758047379306,0.021,116600.0,116590.0,2.09837103]
[1758047379919,0.021,116600.0,116590.0,2.09833103]
[1758047380336,0.021,116600.0,116590.0,2.09733103]
[1758047380552,0.02,116600.0,116590.0,2.09529103]
[1758047380764,0.021,116600.0,116590.0,2.09829103]
[1758047381022,0.023,116600.0,116590.0,2.10129103]
[1758047381645,0.023,116600.0,116590.0,1.47249041]
[1758047381864,0.023,116600.0,116590.0,1.74145041]
[1758047382703,0.023,116600.0,116590.0,1.47249041]
[1758047382911,0.023,116600.0,116590.0,1.74145041]
[1758047383780,0.023,116600.0,116590.0,1.47249041]
[1758047383999,0.023,116600.0,116590.0,1.74145041]
[1758047384627,0.023,116600.0,116590.0,2.10129103]
[1758047385285,0.023,116600.0,116590.0,1.83233103]
[1758047385499,0.023,116600.0,116590.0,2.10121103]
[1758047388790,0.023,116600.0,116590.0,2.10117103]
[1758047390129,0.023,116600.0,116590.0,2.10113103]
[1758047391662,0.023,116600.0,116590.0,1.74129041]
[1758047391887,0.023,116600.0,116590.0,1.74121041]
[1758047392113,0.023,116600.0,116590.0,1.71925041]
[1758047394505,0.023,116600.0,116590.0,1.70523041]
[1758047394716,0.023,116600.0,116590.0,1.45049041]
[1758047394959,0.023,116600.0,116590.0,1.31925041]
[1758047395607,0.023,116600.0,116590.0,1.71925041]
[1758047395809,0.023,116600.0,116590.0,1.76410915]
[1758047401727,0.023,116600.0,116590.0,1.08132915]
[1758047401923,0.21598779,116600.0,116590.0,1.34992915]
[1758047402127,0.025,116600.0,116590.0,1.34992915]
[1758047402345,0.023,116600.0,116590.0,1.76394915]
[1758047402791,0.023,116600.0,116590.0,1.36394915]
[1758047403410,0.023,116600.0,116590.0,1.76394915]
[1758047406109,0.023,116600.0,116590.0,1.35924979]
[1758047406327,0.19452658,116600.0,116590.0,1.35924979]
[1758047406545,0.023,116600.0,116590.0,1.76394915]
[1758047408617,0.023,116600.0,116590.0,2.16864851]
[1758047410682,0.023,116600.0,116590.0,1.76394915]
[1758047411122,0.023,116600.0,116590.0,2.16864851]
[1758047412960,0.023,116600.0,116590.0,2.16884851]
[1758047413171,0.023,116600.0,116590.0,1.76414915]
[1758047414735,0.023,116600.0,116590.0,1.76410915]
[1758047418776,0.023,116600.0,116590.0,1.76398915]
[1758047419255,0.023,116600.0,116590.0,1.74996915]
[1758047419464,0.023,116600.0,116590.0,1.76398915]
[1758047420533,0.023,116600.0,116590.0,1.49534915]
[1758047420747,0.023,116600.0,116590.0,1.76410915]
[1758047421591,0.023,116600.0,116590.0,2.16880851]
[1758047422085,0.023,116600.0,116590.0,1.76410915]
[1758047423302,0.023,116600.0,116590.0,2.16880851]
[1758047425114,0.023,116600.0,116590.0,1.76410915]
[1758047425323,0.023,116600.0,116590.0,1.49534915]
[1758047425563,0.023,116600.0,116590.0,1.76406915]
[1758047426901,0.023,116600.0,116590.0,1.09064979]
[1758047427120,0.023,116600.0,116590.0,1.74996915]
[1758047427338,0.023,116600.0,116590.0,1.76398915]
[1758047429610,0.023,116600.0,116590.0,1.49534915]
[1758047430037,0.023,116600.0,116590.0,1.76422915]
[1758047430466,0.023,116600.0,116590.0,1.49534915]
[1758047430707,0.19452658,116600.0,116590.0,1.48132915]
[1758047430917,0.2191978,116600.0,116590.0,0.67662979]
[1758047431141,0.2424378,116600.0,116590.0,1.35020915]
[1758047431355,0.2424378,116600.0,116590.0,1.17866786]